Cogmind - Beta 17 @@@ ROGUE MODE // 2026.07.23 @ 19:30:30 Player: Trekki Result: Destroyed by D-53 Grenadier with Mini Grenade Launcher Performance ------------- Evolutions (0) 0 Regions Visited (2) 400 Robots Destroyed (5) 25 Value Destroyed (16) 16 Prototype IDs (0) 0 Alien Tech Used (0) 0 Bonus (0) 0 TOTAL SCORE: 441 Bonus ------- None Cogmind --------- Core Integrity 0/250 Matter 380/400 Energy 83/100 System Corruption 0% Temperature Cool (15) Movement Core (150) Ox2 Location -10/Mines Parts ------- > --- POWER (1) -------- (None) > --- PROPULSION (2) --- (None) > --- UTILITY (2) ------ Small Storage Unit Medium Matter Pod > --- WEAPON (2) ------- (None) > --- INVENTORY (8) ---- Heat Sink Mining Laser Peak State ------------ > --- POWER ------------ Ion Engine > --- PROPULSION ------- Aluminum Leg Aluminum Leg > --- UTILITY ---------- Small Storage Unit Improved Terrain Scanner > --- WEAPON ----------- Light Assault Rifle Light Assault Rifle > --- INVENTORY -------- Ion Engine EM Pulse Gun [Rating: 9] Favorites ----------- Power Ion Engine Engine Ion Engine Propulsion Aluminum Leg Leg Aluminum Leg Wheel Wheel Utility Small Storage Unit Device Improved Terrain Scanner Storage Small Storage Unit Weapon Light Assault Rifle Energy Gun EM Pulse Gun Ballistic Gun Light Assault Rifle Build | -11 -10 -10 ------- Run | Yrd Mat Min Slots Evolved . | . . . Power . | . . . Propulsion . | . . . Utility . | . . . Weapon . | . . . Parts Attached 13 | 7 . 6 Power 2 | 1 . 1 Engine 2 | 1 . 1 Core . | . . . Reactor . | . . . Propulsion 5 | 2 . 3 Treads . | . . . Leg 2 | 2 . . Wheel 3 | . . 3 Hover . | . . . Flight . | . . . Utility 3 | 2 . 1 Device 1 | 1 . . Storage 2 | 1 . 1 Processor . | . . . Hackware . | . . . Protection . | . . . Artifact . | . . . Weapon 3 | 2 . 1 Energy Gun 1 | . . 1 Energy Cannon . | . . . Ballistic Gun 2 | 2 . . Ballistic Cannon . | . . . Launcher . | . . . Special Weapon . | . . . Impact Weapon . | . . . Slashing Weapon . | . . . Piercing Weapon . | . . . Special Melee Weapon . | . . . Unidentified Prototypes . | . . . Parts Lost 11 | . . 11 Power 2 | . . 2 Propulsion 5 | . . 5 Utility 1 | . . 1 Weapon 3 | . . 3 Highest Loss Streak 11 | . . 11 To Critical Strikes . | . . . Average Backups 5 | 4 7 7 Power . | . 1 . Propulsion 2 | 1 3 2 Utility . | . 1 1 Weapon 1 | 1 1 2 Tool/Special . | . . . Unused Backups 2 | . . 2 Power . | . . . Propulsion . | . . . Utility 1 | . . 1 Weapon 1 | . . 1 Tool/Special . | . . . Average Slot Usage (%) 96 | . 100 93 Engine 12 | . 14 12 Leg 25 | . 28 24 Wheel 1 | . . 2 Device 12 | . 14 11 Storage 15 | . 14 16 Ballistic Gun 26 | . 28 26 Peak Build Rating 9 | 9 9 9 Average Rating 8 | 8 9 8 On Entrance 6 | . 9 9 Avg Prop Armor Cover (%) . | . . . Naked Turns . | . . . Heaviest Build 14 | 13 13 14 Greatest Support 20 | 20 20 20 Greatest Overweight (x) 4 | 1 . 4 Average Overweight (x) . | . . . Largest Inventory Capacity 8 | 8 8 8 Average Capacity 7 | 7 8 8 Most Carried 8 | 6 8 8 Average Carried 5 | 4 6 7 Final Capacity 8 | 8 8 8 Final Carried 8 | 6 8 2 Class Distribution -------------------- 100% | Mutant Dominant Class ---------------- Mutant | -10/Materials Mutant | -10/Mines Resources | -11 -10 -10 ----------- Run | Yrd Mat Min Matter Collected 381 | 381 . . Remotely . | . . . Salvage Created 179 | 179 . . Parts 10 | 10 . . Haulers Intercepted . | . . . Recyclers Shooed . | . . . Parts Field Recycled . | . . . Retrieved Matter . | . . . Parts Self-Destructed . | . . . Prevented . | . . . Parts Restored . | . . . Kills | -11 -10 -10 ------- Run | Yrd Mat Min Combat Hostiles Destroyed . | . . . Classes Destroyed 3 | 3 . . Worker 3 | 3 . . Tunneler 1 | 1 . . Recycler 1 | 1 . . Best Kill Streak 2 | 2 . . Combat Bots Only . | . . . Max Kills in Single Turn 1 | 1 . . Gunslinging . | . . . Exploded . | . . . Melee . | . . . Uniques/NPCs Destroyed . | . . . Combat | -11 -10 -10 -------- Run | Yrd Mat Min Hostile Shots Fired 57 | . . 57 Missed 16 | . . 16 Hits 41 | . . 41 Projectile 41 | . . 41 AOE 18 | . . 18 Damage Taken 1008 | . . 1008 Core 283 | . . 283 Absorbed by Shields . | . . . Core Remaining (%) 100 | 100 . . Volleys Fired 22 | 14 5 3 Largest 2 | 2 2 2 Hottest 60 | 40 40 60 Shots Fired 44 | 28 10 6 Gun 44 | 28 10 6 Cannon . | . . . Launcher . | . . . Special . | . . . Kinetic 43 | 28 10 5 Thermal . | . . . Explosive . | . . . Electromagnetic 1 | . . 1 Robot Hit Streak 7 | 7 1 5 Robot Miss Streak 4 | 3 3 4 Penetration Max . | . . . Secondary Targets . | . . . Shots Hit Robots 24 | 16 3 5 Core Hits 11 | 8 1 2 Critical Kills 1 | 1 . . Critical Parts Destroyed 1 | . 1 . Critical Strikes 2 | 1 1 . Destroy 2 | 1 1 . Melee Attacks . | . . . Impact . | . . . Slashing . | . . . Piercing . | . . . Sneak Attacks . | . . . Combat Hostiles . | . . . Follow-up Attacks . | . . . Damage Inflicted 197 | 128 22 47 Guns 197 | 128 22 47 Cannons . | . . . Explosions . | . . . Melee . | . . . Ramming . | . . . Kinetic 185 | 128 22 35 Thermal . | . . . Explosive . | . . . Electromagnetic 12 | . . 12 Impact . | . . . Slashing . | . . . Piercing . | . . . Highest Corruption . | . . . Average Corruption . | . . . Corruption Purged . | . . . Corruption Blocked . | . . . Overload Shots . | . . . Overflow Damage . | . . . Projectiles . | . . . Explosions . | . . . Melee . | . . . Knockbacks . | . . . Impact . | . . . Kinetic . | . . . Secondary . | . . . Self-Inflicted Damage . | . . . Shots . | . . . Rammed . | . . . Targets Rammed . | . . . Kicked . | . . . Crushed . | . . . Highest Temperature 31 | . . 31 Average Temperature 13 | . . 13 Received Heat Transfer 195 | . . 195 Siege Activations . | . . . Martial Activations . | . . . Shielding Activations . | . . . Robots Disrupted . | . . . Combat Hostiles . | . . . Robots Corrupted . | . . . Combat Hostiles . | . . . Parts Fried . | . . . Impact Corruptions . | . . . Robots Melted . | . . . Combat Hostiles . | . . . Parts Melted . | . . . Heat Transferred . | . . . Parts Sabotaged . | . . . Parts Stolen . | . . . Parts Stripped . | . . . Power Chain Reactions . | . . . Alert | -11 -10 -10 ------- Run | Yrd Mat Min Maximum Alert Level . | . . . Low Security (%) 100 | 100 100 100 Level 1 . | . . . Level 2 . | . . . Level 3 . | . . . Level 4 . | . . . Level 5 . | . . . High Security . | . . . Max Security . | . . . Peak Influence 5 | 5 . . Initial . | . . . Average . | . . . Influence Increases 25 | 25 . . Destroy 0b10 Robot/NC 25 | 25 . . Influence Decreases 25 | 25 . . Time Decay 25 | 25 . . Squads Dispatched 2 | . 2 . Investigation . | . . . Extermination . | . . . Reinforcement 2 | . 2 . Assault . | . . . Garrison . | . . . Intercept . | . . . Searches Triggered . | . . . Construction Impeded . | . . . Haulers Reinforced . | . . . Active Scanning Responses . | . . . Cargo Convoy Interrupts . | . . . Stealth | -11 -10 -10 --------- Run | Yrd Mat Min Distress Signals . | . . . Communications Jammed . | . . . Distress Signals . | . . . Times Spotted 11 | . 4 7 Peak Tracking Total 6 | . 3 6 Tactical Retreats . | . . . Traps | -11 -10 -10 ------- Run | Yrd Mat Min Traps Triggered . | . . . Indirectly . | . . . Trap Hack Attempts . | . . . Triggered . | . . . Disarmed . | . . . Reprogrammed . | . . . Reused . | . . . Traps Extracted . | . . . Installed . | . . . Triggered . | . . . Machines | -11 -10 -10 ---------- Run | Yrd Mat Min Machines Disabled . | . . . Max in Single Turn . | . . . Machines Repaired . | . . . Machines Dismantled . | . . . Machines Sabotaged . | . . . Overloaded Fab Kills . | . . . Hacking | -11 -10 -10 --------- Run | Yrd Mat Min Machines Accessed 1 | . 1 . Terminals 1 | . 1 . Fabricators . | . . . Repair Stations . | . . . Recycling Units . | . . . Scanalyzers . | . . . Garrison Access . | . . . Total Hacks 1 | . 1 . Successful . | . . . Failed 1 | . 1 . Catastrophic 1 | . 1 . Database Lockouts . | . . . Manual 1 | . 1 . Terminals 1 | . 1 . Fabricators . | . . . Repair Stations . | . . . Recycling Units . | . . . Scanalyzers . | . . . Garrison Access . | . . . Terminal Hacks . | . . . Fabricator Hacks . | . . . Repair Station Hacks . | . . . Recycling Unit Hacks . | . . . Scanalyzer . | . . . Garrison Access Hacks . | . . . Unauthorized Hacks . | . . . Terminals . | . . . Fabricators . | . . . Repair Stations . | . . . Recycling Units . | . . . Scanalyzers . | . . . Garrison Access . | . . . Data Cores Recovered . | . . . Used . | . . . Hacking Detections 1 | . 1 . Full Trace Events . | . . . Feedback Events . | . . . Feedback Blocked . | . . . Robot Schematics Acquired . | . . . Robots Built . | . . . Authchips . | . . . Time . | . . . Total Robot Build Rating . | . . . Part Schematics Acquired . | . . . Parts Built . | . . . Authchips . | . . . Time . | . . . Total Part Build Rating . | . . . Part Studies Acquired . | . . . Parts Repaired . | . . . Time . | . . . Parts Recycled . | . . . Recycled Matter . | . . . Retrieved Matter . | . . . Retrieved Components . | . . . Parts Scanalyzed . | . . . Part Schematics Acquired . | . . . Parts Damaged . | . . . Bothacking | -11 -10 -10 ------------ Run | Yrd Mat Min Used RIF Installer . | . . . Robots Hacked . | . . . Non-combat . | . . . Combat . | . . . Robot Hacks Applied . | . . . Relay Couplers Released . | . . . Fabnet Peak Effective % . | . . . Robots Rewired . | . . . Allies Hacked . | . . . Hacks Repelled . | . . . Allies | -11 -10 -10 -------- Run | Yrd Mat Min Total Allies . | . . . Largest Group . | . . . Highest-Rated Group . | . . . Highest-Rated Ally . | . . . Total Orders . | . . . Ally Attacks . | . . . Total Damage . | . . . Kills . | . . . Allies Corrupted . | . . . Allies Melted . | . . . Intel | -11 -10 -10 ------- Run | Yrd Mat Min Active Infowar (turns) 515 | 318 95 102 Terrain 515 | 318 95 102 Robot Analysis Total . | . . . Derelict Logs Recovered . | . . . Drone Launches . | . . . Drone Recoveries . | . . . Exploration | -11 -10 -10 ------------- Run | Yrd Mat Min Turns Passed 610 | 388 95 127 Spaces Moved 290 | 129 66 95 Core 4 | 3 . 1 Treads . | . . . Legs 278 | 126 66 86 Wheels 8 | . . 8 Hover . | . . . Flight . | . . . Fastest Speed 50 | 50 120 80 Average Speed 119 | 118 120 118 Slowest Speed 250 | 120 120 250 Overloaded Moves . | . . . Propulsion Burnouts . | . . . Robots Hopped . | . . . Potential Cave-ins . | . . . Cave-ins Triggered . | . . . Exploration Rate (%) 20 | 11 23 26 Regions Visited 2 Branch Regions 1 Pre-discovered Areas . | . . . Known Exits Taken . | . . . Unknown Exits Taken 2 | 1 1 . Scrap Searched . | . . . Spaces Dug . | . . . Terrain Destroyed . | . . . Melee . | . . . Projectile . | . . . AOE . | . . . Terrain Rammed . | . . . Walls Destroyed . | . . . Machines Disabled . | . . . Actions | -11 -10 -10 --------- Run | Yrd Mat Min Total 517 | 339 74 104 Wait 184 | 182 2 . Move 288 | 128 65 95 Hop . | . . . Pick Up 10 | 8 2 . Fast Attach 5 | 5 . . Attach 8 | 2 . 6 Detach . | . . . Swap . | . . . Drop . | . . . Fire 22 | 14 5 3 Melee . | . . . Ram . | . . . Kick . | . . . Crush . | . . . Escape Stasis . | . . . Rewire . | . . . Trap . | . . . Miscellaneous . | . . . Route ------- -11/Scrapyard -10/Materials (discovered 2 exits: [*Min x2]) -10/Mines History --------- Turn | Location | Event 8 | -11/Scrapyard | Discovered new exit (range 16) 389 | -11/Scrapyard | Entered Materials 390 | -10/Materials | Build established: Mutant 450 | -10/Materials | Discovered new exit (range 15) 468 | -10/Materials | Discovered new exit (range 12) 484 | -10/Materials | Entered Mines 518 | -10/Mines | Met a Derelict bent on vengeance 530 | -10/Mines | Assembled infested the area 608 | -10/Mines | Core integrity fell below 50% 610 | -10/Mines | Core integrity fell below 20% 611 | -10/Mines | Destroyed by D-53 Grenadier with Mini Grenade Launcher Last Messages --------------- squad. 00567_ C-45 Heavy ARC bursts open, deploying its payload. 00567_ D-53 Grenadier unfolds itself. 00568_ K-01 Serf collects debris. 00586_ Imp. Terrain Scanner destroyed. 00588_ Ion Engine destroyed. 00589_ The unstable cave ceiling collapses. 00595_ Aluminum Leg destroyed. 00597_ The unstable cave ceiling collapses. 00597_ Wheel destroyed. 00599_ The unstable cave ceiling collapses. 00601_ Wheel destroyed. 00602_ The unstable cave ceiling collapses. 00604_ Lgt. Assault Rifle destroyed. 00604_ Wheel destroyed. 00606_ Ion Engine destroyed. 00607_ The unstable cave ceiling collapses. 00609_ Lgt. Assault Rifle destroyed. 00610_ The unstable cave ceiling collapses. 00610_ EM Pulse Gun destroyed. Map ----- +----------------------------------------------------+ | ??????????????????? ?????????????????#????? ??? | | ????????????????????????????????????????### ??? | | ?????????????????????????????????????? ?# ??? | | ????????????????????????????????????????# #??# | | ??????????????????? ????????????????????# #??? | | ????????????????????#???????????????????# #??? | | ???????????????????????????????????#???##"%##?? | | ??????????????????????????####??????????# " ??? | | ?????????????????????????## ##?????????# #??? | | ?????????????????????????# ##????#??## ##?? | | ????#??????????#?????????# ##??????# ##? | | ?????????????????#????????# #??????# #? | | ????????????????????????#??# #?????## #? | | ???????????????????????????# ##??### ##? | | ???????????????????#?####### #### ##?? | | ??####???????????????# ##?? | | ?## ##???????#??????# #??? | | ?# #??????????????# ####### #??? | | ?# #?????#######??# #???### ## #??# | | ??# ##???## #?## #??### g ### ##??? | | ??# ##?## ### #### #### gg #?## ##???? | | ??## ### #?# # ##?#####????? | | ???## #?### d ##?????????? | | ????# #?## d g ##????????? | | ??#?# """ #### #????????? | | ????# """ ##?# @ ###???????? | | ????## """ ##?# #????#??? | | ?????## ## #????????? | | ??????### # # #????????? | | ????????## # ##???????? | | ????????## ### # ##????????? | | ?????#### ##?#### # #?????????? | | ?????# ##?????## # ##??#??????? | | ????# ###???????#### ######?#????????? | | ????# ##?????????????###???????????????? | | ????## ##????????????????????????????????? | | ?????########?????????????????????????????????? | | ??????????????#???????#???????????????????????? | | ??????????????????????????????????????????????? | | | | | | | | | | | | | | | | | | | | | | | +----------------------------------------------------+ Best States ------------- Heat Dissipation 25 Energy Generation 10 Energy Capacity 250 Matter Stores 375 Matter Capacity 400 Sight Range 16 Terrain Scan Range 16 Terrain Scan Density 10 Evasion (%) 55 Item Schematics ----------------- None Robot Schematics ------------------ None Fabricated ------------ Nothing Repaired ---------- Nothing Studied --------- None Alien Tech Used ----------------- None Achievements -------------- None Challenges ------------ None Game ------ Seed StormArcsightKinecellerator Manual? 0 Play Time 00:07:25 Cumulative 38.3 hours Start 2026.07.23 @ 19:25:06 End 2026.07.23 @ 19:30:30 Sessions 1 Manual Loads 0 Difficulty Rogue Special Mode None Game No. 22 Rogue 22 Adventurer 0 Explorer 0 Win Type - Total 0 Types 0/0/0/0/0/0/0/0/0/0 Lore% 23 Gallery% 30 Achievement% 19 Wizard Run 0 Options --------- Layout 0 ASCII 0 Keyboard 0 Movement Mouse Keybinds 0 Fullscreen 2 Font 24/Smallcaps Map View 76x50 Zoom Use 0% Tactical HUD 1 Map Filters NONE Filters NONE Steam 1 RUN: c92025f5-e687-4627-8ed9-45f4c13027d9